lending/lending_fUSD_20251107
["ID","MTS","AMOUNT","RATE_DAILY","PERIOD"]
[393339363,1762491032357,-37792.21,0.00016437,2]
[393339364,1762491032366,-9999.99,0.00016437,2]
[393339366,1762491032375,-195.00000017,0.00016438,2]
[393339367,1762491032384,-7484.28,0.00016438,2]
[393339368,1762491032394,-9198.04,0.00016438,5]
[393339369,1762491032403,-9999.99,0.00016438,2]
[393339370,1762491032413,-9999.99,0.00016438,2]
[393339371,1762491032422,-299.99,0.00016438,4]
[393339372,1762491032431,-17435.97,0.00016438,2]
[393339373,1762491032441,-500.0,0.00016438,2]
[393339374,1762491032451,-289.67,0.00016462,2]
[393339376,1762491032462,-2618.46,0.00016472,2]
[393339378,1762491032472,-500.0,0.00016473,2]
[393339380,1762491032482,-500.0,0.00016473,2]
[393339382,1762491032491,-500.0,0.00016473,2]
[393339384,1762491032501,-481.09604511,0.00016473,2]
[393339386,1762491032510,-500.0,0.00016473,2]
[393339388,1762491032519,-500.0,0.00016473,2]
[393339390,1762491032528,-500.0,0.00016473,2]
[393339392,1762491032537,-500.0,0.00016473,2]
[393339394,1762491032547,-501.13639247,0.00016473,2]
[393339396,1762491032556,-500.0,0.00016473,2]
[393339398,1762491032565,-250.0,0.00016592,2]
[393339400,1762491032575,-300.0,0.00016592,2]
[393339402,1762491032584,-300.0,0.00016592,2]
[393339404,1762491032593,-300.0,0.00016592,2]
[393339406,1762491032603,-300.0,0.00016592,2]
[393339408,1762491032612,-300.0,0.00016592,2]
[393339409,1762491032621,-195.0,0.00016592,2]
[393339410,1762491032630,-441.52572497,0.00016592,2]
[393339411,1762491032639,-259.75805036,0.00016592,2]
[393339412,1762491032650,-150.0,0.00016647,2]
[393339413,1762491032659,-501.65143851,0.00016738,2]
[393339414,1762491032669,-1209.29,0.000168,2]
[393339415,1762491032679,-1000.0,0.0001689,2]
[393339416,1762491032691,-151.0,0.00016909,2]
[393339417,1762491032701,-151.0,0.00016909,2]
[393339418,1762491032710,-151.0,0.00016909,2]
[393339419,1762491032719,-151.0,0.00016909,2]
[393339420,1762491032728,-151.0,0.00016909,2]
[393339421,1762491032738,-151.0,0.00016909,2]
[393339422,1762491032747,-151.0,0.00016909,2]
[393339423,1762491032757,-151.0,0.00016909,2]
[393339424,1762491032767,-151.0,0.00016909,2]
[393339425,1762491032775,-151.0,0.00016909,2]
[393339426,1762491032784,-151.0,0.00016909,2]
[393339427,1762491032793,-151.0,0.00016909,2]
[393339428,1762491032802,-151.0,0.00016909,2]
[393339429,1762491032811,-151.0,0.00016909,2]
[393339430,1762491032820,-151.0,0.00016909,2]
[393339431,1762491032830,-151.0,0.00016909,2]
[393339432,1762491032839,-151.0,0.00016909,2]
[393339433,1762491032848,-151.0,0.00016909,2]
[393339434,1762491032857,-151.0,0.00016909,2]
[393339435,1762491032866,-151.0,0.00016909,2]
[393339436,1762491032875,-2618.46,0.0001692,2]
[393339437,1762491032884,-3932.19,0.00016923,2]
[393339438,1762491032893,-1000.0,0.00017021,2]
[393339439,1762491032902,-157.4329967,0.00017021,2]
[393339440,1762491032912,-1149.70851277,0.00017021,2]
[393339441,1762491032921,-875.11589732,0.00017021,2]
[393339442,1762491032930,-1000.0,0.00017021,2]
[393339443,1762491032938,-1000.70281537,0.00017021,2]
[393339444,1762491032947,-1000.0,0.00017021,2]
[393339445,1762491032957,-849.75899556,0.00017136,2]
[393339446,1762491032966,-751.38,0.00017298,2]
[393339447,1762491032975,-2618.46,0.00017368,2]
[393339448,1762491032984,-289.67,0.00017376,2]
[393339449,1762491032994,-150.0,0.00017554,2]
[393339450,1762491033003,-1560.6806068,0.00017568,2]
[393339451,1762491033012,-1500.0,0.00017568,2]
[393339452,1762491033021,-751.38,0.00017572,2]
[393339453,1762491033031,-195.0,0.00017576,2]
[393339454,1762491033040,-329.81666734,0.000176,2]
[393339455,1762491033049,-250.0,0.00017686,2]
[393339456,1762491033057,-1875.72510547,0.00017686,2]
[393339457,1762491033066,-195.0,0.00017686,2]
[393339458,1762491033075,-300.0,0.00017686,2]
[393339459,1762491033084,-195.0,0.00017686,2]
[393339460,1762491033093,-751.38,0.00017846,2]
[393339461,1762491033102,-1200.0,0.00017961,2]
[393339462,1762491033110,-420.0,0.00017961,2]
[393339463,1762491033119,-540.33648278,0.00018,2]
[393339464,1762491033128,-1680.0,0.00018051,2]
[393339465,1762491033137,-1000.0,0.00018088,2]
[393339466,1762491033146,-2000.0,0.00018116,2]
[393339467,1762491033155,-751.38,0.0001812,2]
[393339468,1762491033164,-15420.19,0.00018208,2]
[393339469,1762491033174,-289.67,0.00018291,2]
[393339470,1762491033182,-751.38,0.00018394,2]
[393339471,1762491033192,-849.75899556,0.00018479,2]
[393339472,1762491033201,-361.7143,0.00018479,2]
[393339473,1762491033210,-12326.8125,0.00018479,2]
[393339474,1762491033219,-500.0,0.00018573,2]
[393339475,1762491033229,-501.20529648,0.00018573,2]
[393339476,1762491033239,-501.41250304,0.00018573,2]
[393339477,1762491033253,-2500.0,0.00018664,2]
[393339478,1762491033263,-751.38,0.00018668,2]
[393339479,1762491033273,-153.31474989,0.00018921,2]
[393339480,1762491033282,-15933.95599482,0.00018921,2]
[393339481,1762491033293,-751.38,0.00018942,2]
[393339482,1762491033303,-467.21226766,0.00018973,2]
[393339483,1762491033312,-500.0,0.00018973,2]
[393339484,1762491033321,-500.0,0.00018973,2]
[393339485,1762491033331,-500.0,0.00018973,2]
[393339486,1762491033340,-623.18720722,0.00018973,2]
[393339487,1762491033349,-503.85495564,0.00018973,2]
[393339488,1762491033359,-500.0,0.00018973,2]
[393339489,1762491033368,-190.42103087,0.00018999,2]
[393339490,1762491033378,-500.0,0.00018999,2]
[393339491,1762491033387,-500.0,0.00018999,2]
[393339492,1762491033397,-500.0,0.00018999,2]
[393339493,1762491033406,-500.0,0.00018999,2]
[393339494,1762491033415,-68400.0822036,0.00019,2]
[393339495,1762491033428,-27630.99411763,0.00019,2]
[393339496,1762491033439,-3734.0,0.00019,2]
[393339497,1762491033450,-305.8481132,0.00019,2]
[393339498,1762491037968,-1619.7181,0.00019,2]
[393339505,1762491040108,-330.07318164,0.00019,2]
[393339506,1762491040322,-1081.0,0.00019,2]
[393339507,1762491040534,-534.0,0.00019,2]
[393339517,1762491043287,-14.88743408,0.00016921,2]
[393339539,1762491046265,-1080.0,0.00016921,2]
[393339546,1762491046638,-2355.07880777,0.00016921,2]
[393339576,1762491125462,500.0,0.00038755,30]
[393339577,1762491126064,500.0,0.00038755,30]
[393339578,1762491126669,500.0,0.00038755,30]
[393339579,1762491127261,500.0,0.00038755,30]
[393339580,1762491127925,500.0,0.00038755,30]
[393339581,1762491128527,500.0,0.00038755,30]
[393339582,1762491129128,500.0,0.00038755,30]
[393339583,1762491129721,500.0,0.00038755,30]
[393339584,1762491130219,151.0,0.00038755,30]
[393339585,1762491130324,500.0,0.00038755,30]
[393339586,1762491130446,631.80451978,0.00038755,30]
[393339587,1762491130618,974.4593,0.00038755,30]
[393339588,1762491130767,250.0,0.00038755,30]
[393339589,1762491130832,151.0,0.00038755,30]
[393339590,1762491130962,500.0,0.00038755,30]
[393339591,1762491131330,332.89872301,0.00038755,30]
[393339592,1762491131415,250.0,0.00038755,30]
[393339593,1762491131482,151.0,0.00038755,30]
[393339594,1762491131593,500.0,0.00038755,30]
[393339595,1762491132031,250.0,0.00038755,30]
[393339620,1762491159366,500.0,0.00038755,120]
[393339621,1762491159601,500.0,0.00038755,120]
[393339622,1762491159725,500.0,0.00038755,120]
[393339623,1762491159839,500.0,0.00038755,120]
[393339644,1762491268407,249.6497,0.00030107,120]
[393339650,1762491424787,300.0,0.00038755,120]
[393339651,1762491425583,300.0,0.00038755,120]
[393339658,1762491519086,829.0,0.00030137,120]
[393339660,1762491810701,512.852407,0.00030031,120]
[393339661,1762491820006,-500.0,0.00016721,2]
[393339662,1762491820034,-195.0,0.00016771,2]
[393339663,1762491820062,-308.0,0.00016821,2]
[393339664,1762491820091,-300.0,0.00016821,2]
[393339665,1762491820119,-250.0,0.00016821,2]
[393339666,1762491820147,-446.6817,0.00016821,2]
[393339667,1762491820174,-614.29932962,0.00016821,2]
[393339668,1762491820204,-500.0,0.00016821,2]
[393339669,1762491820233,-500.0,0.00016821,2]
[393339670,1762491820266,-300.0,0.0001683,2]
[393339671,1762491820305,-300.0,0.0001683,2]
[393339672,1762491820338,-250.0,0.00016841,2]
[393339673,1762491820372,-151.0,0.00016921,2]
[393339674,1762491820407,-151.0,0.00016921,2]
[393339675,1762491820441,-151.0,0.00016921,2]
[393339676,1762491820473,-15.04794076,0.00016921,2]
[393339677,1762491822863,-135.95205924,0.00016921,2]
[393339678,1762491822904,-250.0,0.00017,2]
[393339679,1762491822940,-299.99,0.00017,4]
[393339680,1762491822975,-1660.41,0.00017,2]
[393339681,1762491823009,-150.99,0.00017,2]
[393339682,1762491823043,-999.99,0.00017,2]
[393339683,1762491823076,-1200.0,0.00017168,2]
[393339684,1762491823109,-300.0,0.00017168,2]
[393339685,1762491828959,-1726.88,0.00017383,2]
[393339686,1762491883326,500.0,0.00038766,120]
[393339687,1762491883569,500.0,0.00038766,120]
[393339688,1762491883807,500.0,0.00038766,120]
[393339689,1762491884038,511.29588301,0.00038766,120]
[393339693,1762492232061,-151.0,0.00017383,2]
[393339694,1762492232071,-199.12261654,0.00017383,2]
[393339695,1762492232080,-321.0,0.00017383,2]
[393339696,1762492232089,-250.0,0.00017407,2]
[393339697,1762492232098,-300.0,0.00017431,2]
[393339698,1762492232107,-300.0,0.00017479,2]
[393339699,1762492232115,-500.0,0.000175,2]
[393339700,1762492232124,-351.95332739,0.00017567,2]
[393339701,1762492232133,-204.36,0.00017575,2]
[393339702,1762492232145,-1852.42,0.0001767,2]
[393339703,1762492232154,-300.0,0.00017725,2]
[393339704,1762492232163,-1200.0,0.00017725,2]
[393339705,1762492232173,-158.0,0.00017726,2]
[393339706,1762492232182,-550.0,0.00017726,2]
[393339707,1762492232191,-500.0,0.00017727,2]
[393339708,1762492232200,-500.0,0.00017727,2]
[393339709,1762492232209,-500.0,0.00017727,2]
[393339710,1762492232221,-500.0,0.00017727,2]
[393339711,1762492232231,-500.0,0.00017727,2]
[393339712,1762492232240,-500.0,0.00017727,2]
[393339713,1762492232250,-500.0,0.00017727,2]
[393339714,1762492232260,-500.0,0.00017727,2]
[393339715,1762492232269,-500.0,0.00017727,2]
[393339716,1762492232279,-500.0,0.00017727,2]
[393339717,1762492232288,-611.49404591,0.00017727,2]
[393339718,1762492232297,-500.0,0.00017727,2]
[393339719,1762492232306,-500.0,0.00017727,2]
[393339720,1762492232316,-500.0,0.00017727,2]
[393339721,1762492232326,-500.0,0.00017727,2]
[393339722,1762492232335,-500.0,0.00017727,2]
[393339723,1762492232347,-500.0,0.00017727,2]
[393339724,1762492232357,-500.0,0.00017727,2]
[393339725,1762492232367,-500.0,0.00017727,2]
[393339726,1762492232376,-500.0,0.00017727,2]
[393339727,1762492232386,-250.46,0.00017727,2]
[393339729,1762492232395,-9064.38677603,0.00017728,2]
[393339730,1762492232407,-9539.76322397,0.00017728,2]
[393339731,1762492232417,-5285.28135258,0.00017728,2]
[393339732,1762492232428,-267.35,0.00017728,2]
[393339733,1762492232439,-367.44,0.00017728,2]
[393339735,1762492232454,-4079.91864742,0.00017728,2]
[393339736,1762492232463,-14294.88,0.00017728,2]
[393339737,1762492232475,-7789.24,0.00017728,2]
[393339738,1762492232485,-500.0,0.00017886,2]
[393339739,1762492232494,-250.46,0.00018001,2]
[393339740,1762492232504,-3848.471,0.00018008,2]
[393339741,1762492232513,-279.795,0.00018008,2]
[393339742,1762492232523,-4067.1465,0.00018008,2]
[393339743,1762492232532,-7490.78436744,0.00018107,2]
[393339744,1762492232541,-9999.99,0.00018108,2]
[393339745,1762492232551,-9999.99,0.00018108,2]
[393339746,1762492232560,-33254.3761,0.00018108,2]
[393339747,1762492232570,-1000.0,0.00018108,2]
[393339748,1762492232580,-500.0,0.0001815,2]
[393339749,1762492232589,-477.99034883,0.00018268,2]
[393339750,1762492232599,-250.47677904,0.00018275,2]
[393339751,1762492232608,-289.44740743,0.00018287,2]
[393339753,1762492232618,-500.0,0.00018287,2]
[393339754,1762492232628,-411.65598313,0.00018287,2]
[393339755,1762492232640,-405.5369384,0.00018287,2]
[393339756,1762492232650,-500.0,0.00018287,2]
[393339757,1762492232662,-38641.14,0.00018288,2]
[393339758,1762492232673,-6331.88065051,0.00018293,2]
[393339759,1762492232685,-20694.13699602,0.00018293,2]
[393339760,1762492232695,-1000.0,0.00018434,2]
[393339761,1762492232705,-1453.79444259,0.000185,2]
[393339762,1762492232715,-999.0,0.00018518,3]
[393339763,1762492232732,-29351.03498223,0.00018661,2]
[393339764,1762492232743,-893.85465609,0.00018681,2]
[393339765,1762492232761,-208.0,0.00018708,2]
[393339766,1762492232772,-500.0,0.0001876,2]
[393339767,1762492232782,-500.0,0.0001876,2]
[393339768,1762492232791,-506.28700882,0.0001876,2]
[393339769,1762492232801,-500.0,0.0001876,2]
[393339770,1762492232811,-500.0,0.0001876,2]
[393339771,1762492232820,-515.63484931,0.0001876,2]
[393339772,1762492232830,-500.0,0.0001876,2]
[393339773,1762492232839,-179.75162294,0.0001876,2]
[393339774,1762492232849,-500.0,0.0001876,2]
[393339775,1762492232858,-500.0,0.0001876,2]
[393339776,1762492232868,-500.0,0.0001876,2]
[393339777,1762492232877,-587.39430827,0.0001876,2]
[393339778,1762492232887,-10530.1118658,0.00018761,2]
[393339779,1762492232896,-35052.75088286,0.00018761,2]
[393339781,1762492238143,-1000.0,0.00018193,2]
[393339782,1762492238153,-151.0,0.000185,2]
[393339783,1762492238163,-34809.12831314,0.00018761,2]
[393339784,1762492238172,-58906.3998454,0.00018761,2]
[393339785,1762492238182,-8259.3035112,0.00018761,2]
[393339786,1762492238192,-5727.989094,0.00018761,2]
[393339787,1762492238201,-435.47606473,0.00018773,2]
[393339788,1762492238211,-935.0,0.00018807,2]
[393339789,1762492238221,-500.0,0.00018854,2]
[393339790,1762492238230,-500.0,0.00018873,2]
[393339791,1762492238240,-500.0,0.00018873,2]
[393339792,1762492238249,-500.0,0.00018899,2]
[393339793,1762492238259,-500.0,0.00018899,2]
[393339794,1762492238269,-420000.0,0.000189,2]
[393339795,1762492238279,-5000.0,0.000189,2]
[393339796,1762492238288,-163.49583489,0.000189,2]
[393339797,1762492238297,-500.0,0.000189,6]
[393339798,1762492238306,-218.99390657,0.00018903,2]
[393339799,1762492238316,-269.0,0.00018925,2]
[393339800,1762492238326,-5283.01,0.00018943,2]
[393339801,1762492238335,-150.0,0.00018944,5]
[393339802,1762492238345,-500.0,0.00018973,2]
[393339803,1762492238354,-500.0,0.00018973,2]
[393339805,1762492238363,-500.0,0.00018973,2]
[393339807,1762492238373,-576.8099022,0.00018973,2]
[393339808,1762492238382,-501.02087707,0.00018973,2]
[393339810,1762492238392,-1500.0,0.00018982,2]
[393339812,1762492238402,-500.0,0.00018999,2]
[393339814,1762492238412,-500.0,0.00018999,2]
[393339817,1762492238421,-500.0,0.00018999,2]
[393339818,1762492238431,-500.0,0.00018999,2]
[393339820,1762492238441,-500.0,0.00018999,2]
[393339823,1762492238452,-634.70667195,0.00018999,2]
[393339825,1762492238462,-500.0,0.00018999,2]
[393339827,1762492238473,-500.0,0.00018999,2]
[393339829,1762492238484,-183133.50205621,0.00019,2]
[393339831,1762492238496,-937.28106649,0.00019,2]
[393339833,1762492238506,-300.0,0.00019,2]
[393339835,1762492238517,-3466.7364346,0.00019,2]
[393339837,1762492238528,-7000.0,0.00019,2]
[393339839,1762492238538,-250.0,0.00019121,2]
[393339841,1762492238549,-300.0,0.00019121,2]
[393339843,1762492238559,-195.0,0.00019121,2]
[393339845,1762492238572,-300.0,0.00019121,2]
[393339847,1762492238582,-250.0,0.00019121,2]
[393339849,1762492238592,-311.0,0.00019133,2]
[393339851,1762492238602,-150.0,0.00019187,5]
[393339853,1762492238612,-289.67,0.00019205,2]
[393339856,1762492238626,-420.0,0.00019345,2]
[393339858,1762492238635,-501.0611995,0.00019421,2]
[393339860,1762492238645,-1000.0,0.00019421,2]
[393339862,1762492238655,-1680.0,0.00019441,2]
[393339864,1762492238665,-1000.0,0.00019521,2]
[393339866,1762492238679,-1000.0,0.00019521,2]
[393339868,1762492238689,-1523.22717164,0.0001953,2]
[393339869,1762492238698,-480.8,0.00019666,2]
[393339872,1762492238709,-1041.04,0.00019767,2]
[393339874,1762492238719,-27026.01764648,0.00019902,2]
[393339876,1762492238732,-1589.0,0.00019959,2]
[393339878,1762492238742,-787.57765734,0.00019968,2]
[393339880,1762492238753,-1500.0,0.00019968,2]
[393339882,1762492238763,-502.65576552,0.00020068,2]
[393339884,1762492238773,-1500.0,0.00020068,2]
[393339886,1762492238783,-1000.0,0.00020098,2]
[393339888,1762492238792,-181.03,0.00020106,2]
[393339890,1762492238802,-289.67,0.0002012,2]
[393339892,1762492238812,-2326.16,0.00020455,2]
[393339894,1762492238821,-1508.49713198,0.00020516,2]
[393339896,1762492238832,-29351.03498214,0.00020606,2]
[393339898,1762492238842,-754.16358819,0.00020616,2]
[393339899,1762492238851,-200.0,0.00020644,2]
[393339901,1762492238861,-58906.3998454,0.00020659,2]
[393339902,1762492238873,-620.28676495,0.00020888,2]
[393339903,1762492238884,-69861.879196,0.00020897,2]
[393339904,1762492238894,-1100.0,0.000209,7]
[393339905,1762492238905,-435.47606465,0.00020982,2]
[393339906,1762492238915,-350.0,0.00021,2]
[393339907,1762492238925,-7000.0,0.00021,2]
[393339908,1762492238935,-500.0,0.0002101,2]
[393339909,1762492238945,-500.0,0.0002101,2]
[393339910,1762492238955,-500.0,0.0002101,2]
[393339911,1762492238966,-289.67,0.00021035,2]
[393339913,1762492238978,-12397.04,0.00021068,2]
[393339915,1762492238988,-10530.1118658,0.00021081,2]
[393339917,1762492238997,-587.0,0.00021114,2]
[393339919,1762492239007,-2020.0,0.00021164,2]
[393339921,1762492239020,-2351.0,0.00021322,2]
[393339924,1762492239030,-6315.01,0.0002137,2]
[393339926,1762492239040,-27026.01764648,0.00021512,2]
[393339928,1762492239049,-500.0,0.00021661,2]
[393339930,1762492239058,-1278.0871238,0.00021663,2]
[393339932,1762492239068,-5000.0,0.00021918,2]
[393339934,1762492239079,-289.67,0.00021949,2]
[393339936,1762492239088,-1000.0,0.00022107,2]
[393339938,1762492239097,-285.1797846,0.0002231,2]
[393339940,1762492239107,-202.00275,0.00022549,2]
[393339942,1762492239116,-29351.03498214,0.00022551,2]
[393339944,1762492239126,-500.0,0.00022556,2]
[393339946,1762492239136,-58906.3998454,0.00022557,2]
[393339948,1762492239147,-171.70275,0.00022718,2]
[393339950,1762492239157,-500.0,0.0002274,2]
[393339952,1762492239167,-500.0,0.0002274,2]
[393339954,1762492239178,-500.0,0.0002274,2]
[393339956,1762492239189,-500.0,0.0002274,2]
[393339958,1762492239198,-289.67,0.00022864,2]
[393339960,1762492239208,-400.0,0.00023,2]
[393339961,1762492239219,-7000.0,0.00023,2]
[393339963,1762492239232,-69861.879196,0.00023034,2]
[393339965,1762492239242,-823.0,0.00023044,2]
[393339967,1762492239252,-1842.8997151,0.00023065,2]
[393339968,1762492239263,-787.5776573,0.00023083,2]
[393339969,1762492239274,-27026.01764648,0.00023121,2]
[393339970,1762492239284,-435.47606465,0.00023191,2]
[393339971,1762492239294,-162.35810273,0.00023247,2]
[393339972,1762492239304,-3292.0,0.00023386,2]
[393339973,1762492239314,-10530.1118658,0.000234,2]
[393339974,1762492239536,-289.67,0.00023778,2]
[393339975,1762492239548,-411.2065085,0.00024025,2]
[393339976,1762492239558,-1000.0,0.00024117,2]
[393339977,1762492239568,-1726.88,0.00024337,2]
[393339978,1762492239577,-500.0,0.00024455,2]
[393339979,1762492239587,-58906.3998454,0.00024455,2]
[393339980,1762492239596,-500.0,0.00024469,2]
[393339981,1762492239606,-29351.03498214,0.00024496,2]
[393339982,1762492239615,-1000.0,0.00024658,2]
[393339983,1762492239624,-289.67,0.00024693,2]
[393339984,1762492239633,-27026.01764648,0.0002473,2]
[393339985,1762492239643,-547.46257268,0.0002474,2]
[393339986,1762492239652,-1017.2501,0.00024799,2]
[393339987,1762492239662,-500.0,0.00024799,2]
[393339988,1762492239673,-500.0,0.00024799,2]
[393339989,1762492239683,-437.07502368,0.00024799,2]
[393339990,1762492239692,-474.76009001,0.000248,3]
[393339991,1762492239701,-1700.0,0.000248,9]
[393339992,1762492239711,-615334.018776,0.000248,3]
[393339993,1762492239720,-905.0,0.0002484,2]
[393339994,1762492239731,-1188.0,0.0002484,2]
[393339995,1762492239740,-6659.0,0.0002484,2]
[393339996,1762492239749,-2142.0,0.0002484,2]
[393339997,1762492239760,-6476.0,0.0002484,2]
[393339998,1762492239770,-559.0,0.0002484,2]
[393339999,1762492239779,-3494.0,0.0002484,2]
[393340000,1762492239788,-500.0,0.00024899,2]
[393340001,1762492239798,-500.0,0.00024899,2]
[393340002,1762492239807,-500.0,0.00024899,2]
[393340003,1762492239817,-2200.0,0.000249,9]
[393340004,1762492239826,-200.0,0.00024901,2]
[393340005,1762492239836,-150.115,0.00024901,2]
[393340006,1762492239846,-150.0,0.00024901,2]
[393340007,1762492239855,-150.177,0.00024901,2]
[393340008,1762492239864,-211.33,0.00024901,2]
[393340009,1762492239873,-288.312,0.00024901,2]
[393340010,1762492239883,-150.0,0.00024901,2]
[393340012,1762492239893,-150.171,0.00024901,2]
[393340013,1762492239902,-159.918,0.00024901,2]
[393340014,1762492239912,-612.145,0.00024901,2]
[393340015,1762492239921,-596.318,0.00024901,2]
[393340016,1762492239931,-3424.0,0.00024901,2]
[393340017,1762492239940,-1316.0,0.00024901,2]
[393340018,1762492239949,-821.0,0.00024901,2]
[393340019,1762492239959,-1596.0,0.00024901,2]
[393340020,1762492239969,-812.0,0.00024901,2]
[393340021,1762492239979,-1273.0,0.00024901,2]
[393340022,1762492239989,-450.0,0.00025,2]
[393340023,1762492239998,-1029.95,0.00025,2]
[393340024,1762492240007,-7000.0,0.00025,2]
[393340026,1762492240016,-1152.0,0.00025151,2]
[393340027,1762492240026,-69861.879196,0.0002517,2]
[393340028,1762492240035,-435.47606465,0.000254,2]
[393340029,1762492240044,-477.99034883,0.000255,3]
[393340030,1762492240054,-1029.95,0.000255,2]
[393340031,1762492240063,-480.8,0.00025591,2]
[393340033,1762492240072,-4609.0,0.0002565,2]
[393340035,1762492240082,-10530.1118658,0.0002572,2]
[393340036,1762492240091,-2000.0,0.000258,2]
[393340037,1762492240100,-1029.95,0.00026,30]
[393340038,1762492240110,-787.5776573,0.00026197,2]
[393340039,1762492240125,-874.0,0.00026268,2]
[393340040,1762492240144,-27026.01764648,0.0002634,2]
[393340041,1762492240154,-29351.03498214,0.00026441,2]
[393340042,1762492240165,-20374.0,0.00026496,2]
[393340043,1762492240175,-874.0,0.00026498,7]
[393340044,1762492240186,-1029.95,0.000265,30]
[393340045,1762492240196,-874.0,0.00026792,2]
[393340046,1762492240205,-157.45979604,0.00026879,30]
[393340047,1762492240215,-874.0,0.00026886,2]
[393340048,1762492240225,-7000.0,0.00027,2]
[393340049,1762492240235,-500.0,0.00027276,2]
[393340050,1762492240244,-500.0,0.00027288,2]
[393340051,1762492240254,-150.0,0.00027369,2]
[393340052,1762492240263,-150.0,0.00027397,7]
[393340053,1762492240273,-1120.86,0.00027397,16]
[393340054,1762492240282,-300.0,0.00027397,2]
[393340055,1762492240291,-372.06,0.000274,7]
[393340056,1762492240301,-228.12,0.000274,7]
[393340057,1762492240311,-874.0,0.00027417,2]
[393340058,1762492240320,-1613.0,0.0002745,2]
[393340059,1762492240329,-2000.0,0.000275,2]
[393340060,1762492240338,-435.47606465,0.00027609,2]
[393340061,1762492240347,-877.0,0.00027641,2]
[393340062,1762492240357,-151.0,0.00027669,7]
[393340063,1762492240367,-1608.46,0.00027671,30]
[393340064,1762492240376,-620.28676495,0.0002768,2]
[393340065,1762492240385,-151.0,0.00027687,7]
[393340066,1762492240395,-500.0,0.00027689,2]
[393340067,1762492240404,-305.0,0.00027689,2]
[393340068,1762492240413,-1214283.3167351,0.0002769,2]
[393340069,1762492240423,-151.0,0.0002769,15]
[393340070,1762492240432,-151.0,0.0002769,31]
[393340071,1762492240441,-151.0,0.0002769,31]
[393340072,1762492240451,-151.0,0.0002769,31]
[393340073,1762492240461,-278.855926,0.0002769,31]
[393340074,1762492240473,-151.0,0.0002769,31]
[393340075,1762492240482,-151.0,0.0002769,31]
[393340076,1762492240492,-151.000008,0.0002769,31]
[393340077,1762492240501,-151.0,0.0002769,31]
[393340078,1762492240511,-154.619845,0.0002769,31]
[393340079,1762492240520,-151.0,0.0002769,31]
[393340080,1762492240529,-158.628141,0.0002769,31]
[393340081,1762492240539,-151.0,0.0002769,31]
[393340082,1762492240548,-151.0,0.0002769,31]
[393340083,1762492240557,-162.62384,0.0002769,31]
[393340084,1762492240566,-1255.792157,0.0002769,31]
[393340085,1762492240575,-1255.792157,0.0002769,31]
[393340086,1762492240585,-151.0,0.0002769,30]
[393340087,1762492240594,-1255.792157,0.0002769,31]
[393340088,1762492240604,-1255.792157,0.0002769,31]
[393340089,1762492240613,-155.267409,0.0002769,31]
[393340090,1762492240622,-151.0,0.0002769,31]
[393340091,1762492240632,-151.0,0.0002769,31]
[393340092,1762492240641,-151.0,0.0002769,31]
[393340093,1762492240650,-151.0,0.0002769,31]
[393340094,1762492240659,-151.0,0.0002769,31]
[393340095,1762492240670,-151.0,0.0002769,31]